bitfinex-derivatives/quotes_SOLF0:USTF0_20250716
["timestamp","ask_amount","ask_price","bid_price","bid_amount"]
[1752666147485,6.0081,166.42,166.4,179.2686]
[1752666149387,6.04752703,166.43,166.4,179.2686]
[1752666151790,6.0081,166.42,166.4,179.2686]
[1752666153194,0.03972703,166.43,166.4,179.2686]
[1752666154593,0.03972703,166.43,166.41,6.0082]
[1752666155991,0.03972703,166.43,166.42,6.0081]
[1752666156696,6.04742703,166.43,166.41,6.0083]
[1752666157196,0.03972703,166.43,166.41,6.0083]
[1752666158194,6.04752703,166.43,166.41,6.0083]
[1752666158793,4.1710849,166.43,166.4,173.26]
[1752666159493,6.0084,166.41,166.4,173.26]
[1752666159998,10.13975787,166.41,166.4,173.26]
[1752666161295,6.0088,166.4,166.39,0.04609784]
[1752666164200,0.03972703,166.43,166.39,0.04609784]
[1752666165300,0.03972703,166.43,166.42,6.0081]
[1752666166501,0.03972703,166.43,166.41,179.2883]
[1752666166699,0.03972703,166.43,166.41,173.28]
[1752666167500,6.04762703,166.43,166.41,173.28]
[1752666169002,6.04762703,166.43,166.41,179.2884]
[1752666169701,0.03972703,166.43,166.42,6.0081]
[1752666170600,0.03972703,166.43,166.41,179.2883]
[1752666171001,0.03972703,166.43,166.41,173.28]
[1752666171600,6.04772703,166.43,166.41,173.28]
[1752666172599,6.0081,166.42,166.41,173.28]
[1752666174505,6.04772703,166.43,166.41,173.28]
[1752666174907,6.04772703,166.43,166.41,179.2884]
[1752666175999,6.04772703,166.43,166.41,173.28]
[1752666178509,6.04772703,166.43,166.41,179.2884]
[1752666182013,0.03972703,166.43,166.42,6.0081]
[1752666183013,0.03972703,166.43,166.42,179.2281]
[1752666184112,196.2047354,166.51,166.42,173.22]
[1752666184308,4.12993125,166.49,166.42,173.22]
[1752666184507,4.12993125,166.47,166.42,173.22]
[1752666184813,6.007,166.45,166.42,173.22]
[1752666185215,6.007,166.45,166.42,179.2279]
[1752666185415,6.007,166.45,166.43,6.3270164]
[1752666185714,6.007,166.45,166.44,6.3270164]
[1752666187217,6.007,166.45,166.42,179.2739777]
[1752666187412,6.007,166.45,166.43,6.32641737]
[1752666187619,6.007,166.45,166.44,6.32641737]
[1752666189423,10.137375,166.45,166.44,6.32641737]
[1752666189920,6.0077,166.43,166.42,0.0460777]
[1752666199021,6.0071,166.45,166.42,6.0538777]
[1752666199218,4.130375,166.45,166.42,0.0460777]
[1752666199423,4.130375,166.43,166.42,0.0460777]
[1752666200219,10.138075,166.43,166.42,0.0460777]
[1752666205228,10.138075,166.43,166.42,6.29552669]
[1752666205829,10.138075,166.43,166.42,0.0460777]
[1752666206128,10.138075,166.43,166.42,6.29632806]
[1752666207230,10.138075,166.43,166.42,0.0460777]
[1752666211829,6.0077,166.43,166.42,0.0460777]
[1752666212029,10.138075,166.43,166.42,0.0460777]
[1752666218930,8.65290118,166.43,166.42,0.0460777]
[1752666226635,2.64520118,166.43,166.37,173.2]
[1752666226933,2.64520118,166.38,166.37,173.2]
[1752666227135,2.64520118,166.38,166.37,179.38410483]
[1752666227526,8.65470118,166.38,166.37,179.38410483]
[1752666229232,2.64520118,166.38,166.37,179.38410483]
[1752666229738,8.69496924,166.39,166.37,185.39400483]
[1752666230034,2.68566924,166.39,166.38,6.18410483]
[1752666231032,8.69496924,166.39,166.37,179.2099]
[1752666231235,8.69496924,166.39,166.38,6.18409901]
[1752666235638,0.04046806,166.39,166.38,12.19359901]
[1752666239846,0.04046806,166.39,166.38,12.19631314]
[1752666240253,0.04046806,166.39,166.38,6.0095]
[1752666240453,0.04046806,166.39,166.38,12.19705935]
[1752666241750,13.478252,166.48,166.41,6.0083]
[1752666242057,221.00757476,166.51,166.42,8.83319181]
[1752666242358,2.64520118,166.48,166.44,2.64520118]
[1752666242656,8.65130118,166.48,166.45,179.36799063]
[1752666242857,8.65130118,166.48,166.46,6.18799063]
[1752666243057,6.0061,166.48,166.47,6.18799063]
[1752666243651,10.13456762,166.48,166.47,6.18799063]
[1752666244058,6.0066,166.46,166.45,173.21845038]
[1752666244261,4.12846762,166.46,166.41,173.16]
[1752666244455,4.12846762,166.46,166.42,6.17752369]
[1752666244759,6.0079,166.43,166.41,173.16]
[1752666244959,6.0079,166.43,166.42,6.17778129]
[1752666245660,0.03962439,166.44,166.42,6.17778129]
[1752666245958,0.03962439,166.44,166.43,6.17778129]
[1752666247159,0.03962439,166.44,166.43,12.18548129]
[1752666247455,0.03962439,166.44,166.43,6.0077]
[1752666247757,0.03962439,166.44,166.43,12.17902324]
[1752666256465,0.03962439,166.44,166.43,12.16757055]
[1752666256962,0.03962439,166.44,166.43,12.16756502]
[1752666258760,10.13376762,166.5,166.46,6.0063]
[1752666258955,10.13376762,166.5,166.46,179.1063]
[1752666259158,6.0053,166.5,166.46,179.1063]
[1752666259361,4.12846762,166.5,166.47,6.0061]
[1752666260059,4.12846762,166.5,166.47,6.04425019]
[1752666260255,192.07480415,166.51,166.47,0.03815019]
[1752666260865,10.13306762,166.52,166.49,6.0055]
[1752666263168,6.0046,166.52,166.49,6.0055]
[1752666265871,10.13266762,166.53,166.49,6.0055]
[1752666268470,6.0045,166.52,166.49,6.0055]
[1752666269172,6.0042,166.53,166.5,6.0051]
[1752666271075,6.0045,166.52,166.49,6.0054]
[1752666271872,6.0042,166.53,166.5,6.0051]
[1752666272771,6.0042,166.53,166.5,0.0398729]
[1752666272973,6.0045,166.52,166.5,0.0398729]
[1752666273173,2.64105755,166.52,166.5,0.0398729]
[1752666275076,8.64565755,166.52,166.5,0.0398729]
[1752666276476,8.64585755,166.51,166.5,0.0398729]
[1752666283984,6.0048,166.51,166.5,0.0398729]
[1752666284180,8.64585755,166.51,166.5,0.0398729]
[1752666286282,6.0048,166.51,166.5,7.29e-05]
[1752666286488,8.64585755,166.51,166.5,7.29e-05]
[1752666287286,2.64151648,166.51,166.5,7.29e-05]
[1752666287986,8.64631648,166.51,166.5,7.29e-05]
[1752666289189,8.64631648,166.51,166.5,173.0000729]
[1752666290088,6.0048,166.51,166.5,173.0000729]
[1752666290788,8.68955136,166.52,166.5,179.15234758]
[1752666291187,8.68955136,166.52,166.5,173.0000729]
[1752666292588,0.04343488,166.52,166.5,173.0000729]
[1752666292888,0.04343488,166.52,166.51,6.1489766]
[1752666293386,6.04793488,166.52,166.51,6.1489766]
[1752666294186,8.68909112,166.52,166.51,179.1489766]
[1752666296892,8.68909112,166.52,166.51,6.1489766]
[1752666297095,6.0048,166.51,166.5,172.9800729]
[1752666297289,8.64595624,166.51,166.5,179.13220654]
[1752666298994,8.64595624,166.51,166.5,172.9800729]
[1752666299196,8.64595624,166.51,166.5,179.13409761]
[1752666299894,8.64595624,166.51,166.5,172.9800729]
[1752666300086,8.64595624,166.51,166.5,179.13365045]
[1752666300285,6.04793488,166.52,166.5,179.13365045]
[1752666300486,0.04343488,166.52,166.5,172.9800729]
[1752666300686,2.68459112,166.52,166.5,172.9800729]
[1752666301387,6.0048,166.51,166.5,172.9800729]
[1752666301691,6.0048,166.51,166.5,179.13710168]
[1752666301894,8.64595624,166.51,166.5,179.13710168]
[1752666302086,6.0048,166.51,166.5,179.13710168]
[1752666302288,8.64595624,166.51,166.5,179.13710168]
[1752666302900,6.0048,166.51,166.5,179.13710168]
[1752666305800,8.68909112,166.52,166.5,179.13710168]
[1752666305998,8.68909112,166.52,166.51,6.15702878]
[1752666306191,6.04793488,166.52,166.51,6.15702878]
[1752666306391,8.68909112,166.52,166.51,6.15702878]
[1752666307794,6.0048,166.51,166.5,172.9800729]
[1752666308003,8.64595624,166.51,166.5,179.1518453]
[1752666308598,8.64595624,166.51,166.5,179.15241904]
[1752666312399,8.64595624,166.51,166.5,172.9800729]
[1752666313405,8.64595624,166.51,166.5,7.29e-05]
[1752666327527,2.64115624,166.51,166.4,691.86]
[1752666327828,2.64115624,166.41,166.4,518.88]
[1752666328028,12.0105,166.5,166.4,518.88]
[1752666328328,2.64115624,166.44,166.4,521.52115624]
[1752666328724,8.64875624,166.44,166.41,6.0084]
[1752666329429,8.68813036,166.44,166.41,6.0084]
[1752666329829,6.04697412,166.44,166.41,6.0084]
[1752666330327,6.04697412,166.44,166.41,8.64955624]
[1752666330724,6.04697412,166.44,166.41,6.0084]
[1752666330929,8.68813036,166.44,166.41,2.64115624]
[1752666332230,2.68053036,166.44,166.41,8.64945624]
[1752666332523,0.03937412,166.44,166.41,6.0083]
[1752666332727,6.04697412,166.44,166.4,527.52975624]
[1752666333027,8.68813036,166.44,166.4,527.52975624]
[1752666333928,8.64895624,166.43,166.4,518.88]
[1752666334122,2.64115624,166.43,166.4,518.88]
[1752666334323,2.64115624,166.42,166.4,518.88]
[1752666334523,8.64925624,166.42,166.41,173.0]
[1752666337229,2.64115624,166.42,166.41,173.0]
[1752666337425,8.64895624,166.43,166.41,173.0]
[1752666338931,6.04687412,166.44,166.41,179.0083]
[1752666339129,8.68803036,166.44,166.41,179.0083]
[1752666339928,6.04687412,166.44,166.41,179.0083]
[1752666340330,0.03937412,166.44,166.42,6.008]
[1752666340626,0.03937412,166.44,166.41,175.64115624]
[1752666340835,0.03937412,166.44,166.41,181.64935624]
[1752666342133,6.04677412,166.44,166.41,181.64935624]
[1752666342627,0.03937412,166.44,166.41,181.64935624]
[1752666342833,0.03937412,166.44,166.43,2.64115624]
[1752666343036,0.03937412,166.44,166.43,175.66115624]
[1752666343329,0.03937412,166.44,166.43,181.66885624]
[1752666343830,2.64115624,166.49,166.45,6.0067]
[1752666344028,2.64115624,166.49,166.46,173.02]
[1752666344228,2.64115624,166.5,166.46,175.66115624]
[1752666344423,6.0055,166.49,166.46,181.66745624]
[1752666344824,6.0055,166.49,166.46,179.0263]
[1752666345231,6.0055,166.49,166.46,179.06508083]
[1752666345630,6.0053,166.5,166.47,6.0062]
[1752666346433,6.0049,166.51,166.48,6.0058]
[1752666346632,6.0049,166.51,166.49,173.02]
[1752666347235,10.1325909,166.52,166.49,173.02]
[1752666348033,6.0049,166.51,166.49,173.02]
[1752666349034,6.0052,166.5,166.49,173.02]
[1752666349435,6.0048,166.51,166.49,173.02]
[1752666349835,6.0048,166.51,166.49,179.0255]
[1752666350135,6.0048,166.51,166.49,173.02]
[1752666350629,6.0046,166.52,166.49,173.02]
[1752666351335,6.0046,166.52,166.49,173.06252445]
[1752666353636,6.0048,166.51,166.49,173.06252445]
[1752666355137,6.0052,166.5,166.49,173.06252445]
[1752666358638,13.478252,166.57,166.49,179.06802445]
[1752666358933,4.1279909,166.53,166.49,179.06802445]
[1752666359236,6.0047,166.52,166.49,179.06802445]
[1752666359438,6.0047,166.52,166.49,173.06252445]
[1752666359633,4.1279909,166.53,166.49,173.06252445]
[1752666359838,6.0045,166.52,166.49,173.06252445]
[1752666360040,4.1279909,166.53,166.49,173.06252445]
[1752666360939,13.478252,166.57,166.49,173.06252445]
[1752666361139,4.1279909,166.53,166.49,173.06252445]
[1752666361737,6.0046,166.52,166.49,173.06252445]
[1752666363942,6.0046,166.52,166.49,179.06802445]
[1752666364746,6.0046,166.52,166.49,173.06252445]
[1752666365341,6.0046,166.52,166.49,179.06792445]
[1752666367145,2.64138716,166.51,166.49,179.06792445]
[1752666368346,2.64138716,166.51,166.49,173.06252445]
[1752666370746,8.64628716,166.51,166.49,173.06252445]
[1752666372752,6.0052,166.5,166.49,173.06252445]
[1752666372943,8.64658716,166.5,166.49,173.06252445]
[1752666374945,2.64138716,166.5,166.49,173.06252445]
[1752666375749,8.64658716,166.5,166.49,173.06252445]
[1752666382349,13.478252,166.56,166.49,179.06802445]
[1752666382552,2.64138716,166.51,166.49,173.06252445]
[1752666383849,8.64638716,166.51,166.49,173.06252445]
[1752666388246,6.0052,166.5,166.49,173.06252445]
[1752666388453,6.0052,166.5,166.49,0.04252445]
[1752666388651,8.64761266,166.5,166.49,0.04252445]
[1752666389352,6.0052,166.5,166.49,0.04252445]
[1752666389554,8.64761266,166.5,166.49,0.04252445]
[1752666392053,6.0052,166.5,166.49,0.04252445]
[1752666392254,8.64761266,166.5,166.49,0.04252445]
[1752666392554,6.0052,166.5,166.49,0.04252445]
[1752666392852,8.64761266,166.5,166.49,0.04252445]
[1752666393256,2.64241266,166.5,166.49,0.04252445]
[1752666394154,8.64761266,166.5,166.49,0.04252445]
[1752666394358,2.64241266,166.52,166.49,0.04252445]
[1752666395055,8.64701266,166.52,166.49,6.04782445]
[1752666395656,2.64241266,166.54,166.5,6.0052]
[1752666397051,6.0041,166.53,166.5,6.0052]
[1752666397257,2.64089961,166.53,166.49,2.68342406]
[1752666397652,150.52609269,166.57,166.49,2.68342406]
[1752666397848,2.64089961,166.53,166.5,6.0049]
[1752666398051,8.64529961,166.53,166.5,6.0049]
[1752666398352,2.64089961,166.53,166.5,6.0049]
[1752666398654,2.64089961,166.52,166.49,8.68882406]
[1752666398854,2.64089961,166.52,166.49,6.04792445]
[1752666399055,8.64559961,166.52,166.49,6.04792445]
[1752666399354,8.64559961,166.52,166.5,6.0051]
[1752666399855,6.0047,166.52,166.5,6.0051]
[1752666401159,6.0047,166.52,166.49,8.68882406]
[1752666401360,2.64089961,166.53,166.49,8.68882406]
[1752666402056,6.0047,166.52,166.49,8.68882406]
[1752666402648,6.0047,166.52,166.5,6.33780299]
[1752666402854,8.64509961,166.53,166.51,6.33780299]
[1752666403159,8.64509961,166.53,166.5,6.0051]
[1752666403350,6.0044,166.52,166.51,6.33814429]
[1752666403556,2.64089961,166.56,166.51,8.9790439]
[1752666403754,2.64089961,166.54,166.52,6.33814429]
[1752666403950,2.64089961,166.54,166.53,6.33814429]
[1752666403951,8.64459961,166.54,166.53,6.33814429]
[1752666405556,6.0041,166.53,166.52,0.04535421]
[1752666405760,8.64499961,166.53,166.52,6.31825927]
[1752666406155,8.64499961,166.53,166.52,6.3183815]
[1752666408461,2.64089961,166.53,166.52,6.3183815]
[1752666411062,6.0039,166.54,166.52,6.3183815]
[1752666411263,8.64479961,166.54,166.52,0.04535421]
[1752666411462,6.0041,166.53,166.52,0.04535421]
[1752666411665,6.0041,166.53,166.52,6.3151844]
[1752666411963,6.0041,166.53,166.52,6.31563768]
[1752666412462,8.64479961,166.54,166.52,6.31563768]
[1752666412665,8.64479961,166.54,166.52,0.04535421]
[1752666414266,6.0041,166.53,166.52,0.04535421]
[1752666414466,6.0041,166.53,166.52,6.31564695]
[1752666415366,6.0038,166.54,166.52,12.32004695]
[1752666415563,8.64469961,166.54,166.52,6.04975421]
[1752666415762,8.64469961,166.54,166.52,0.04535421]
[1752666417071,6.0038,166.54,166.52,0.04535421]
[1752666417271,8.64469961,166.54,166.52,0.04535421]
[1752666418370,6.0035,166.55,166.52,6.04975421]
[1752666418568,2.64089961,166.54,166.52,0.04535421]
[1752666418773,13.49194817,166.59,166.52,0.04535421]
[1752666419072,8.64459961,166.54,166.52,0.04535421]
[1752666419973,13.49194817,166.59,166.52,0.04535421]
[1752666420180,2.64089961,166.55,166.53,6.26917004]
[1752666420478,2.64089961,166.54,166.52,0.04535421]
[1752666420678,2.64089961,166.53,166.42,518.92]
[1752666420879,2.64089961,166.51,166.47,2.64089961]
[1752666421073,2.64089961,166.51,166.48,8.91111061]
[1752666421275,13.49194817,166.57,166.49,8.90821374]
[1752666421477,2.64089961,166.53,166.5,8.90821374]
[1752666421677,2.64089961,166.53,166.51,6.26731413]
[1752666421979,2.64089961,166.53,166.52,6.26731413]
[1752666423082,6.0043,166.53,166.52,6.26731413]
[1752666423278,8.64519961,166.53,166.52,6.26731413]
[1752666423581,8.64519961,166.53,166.52,6.26665685]
[1752666424672,6.0038,166.54,166.52,6.26665685]
[1752666424875,2.64089961,166.53,166.5,0.03791447]
[1752666425075,2.64089961,166.53,166.51,6.26689734]
[1752666425277,8.64499961,166.53,166.52,6.26689734]
[1752666425682,2.64089961,166.53,166.52,6.26689734]
[1752666426779,8.64499961,166.53,166.52,6.26689734]
[1752666427473,2.64089961,166.53,166.5,6.04619782]
[1752666427671,2.64089961,166.52,166.51,6.26887426]
[1752666427877,8.64529961,166.52,166.51,6.26887426]
[1752666428584,8.64529961,166.52,166.5,0.04109782]
[1752666428884,8.64529961,166.52,166.51,6.26913768]
[1752666429080,2.64089961,166.52,166.51,6.26913768]
[1752666429283,2.64089961,166.52,166.5,6.04619782]
[1752666429684,8.64509961,166.53,166.5,6.04619782]
[1752666429984,6.0045,166.52,166.5,6.04619782]
[1752666430988,6.0045,166.52,166.5,0.04109782]
[1752666431183,8.64539961,166.52,166.5,0.04109782]
[1752666431989,2.64089961,166.52,166.5,6.04619782]
[1752666433287,2.64089961,166.52,166.51,6.30681551]
[1752666433684,6.0042,166.53,166.5,6.04619782]
[1752666433987,2.64089961,166.52,166.5,6.04619782]
[1752666434388,2.64089961,166.52,166.51,6.30827126]
[1752666434690,6.0042,166.53,166.51,6.30827126]
[1752666434879,2.64089961,166.52,166.5,6.04619782]
[1752666435085,2.64089961,166.52,166.51,6.30827126]
[1752666435286,8.64529961,166.52,166.51,6.30827126]
[1752666437393,6.0048,166.51,166.5,0.04109782]
[1752666437589,8.64569961,166.51,166.5,6.34958736]
[1752666437790,8.64569961,166.51,166.5,0.04109782]
[1752666439190,6.0048,166.51,166.5,0.04109782]
[1752666439391,8.64569961,166.51,166.5,0.04109782]
[1752666440091,6.0048,166.51,166.5,0.04109782]
[1752666440296,8.64569961,166.51,166.5,0.04109782]
[1752666440593,6.0062,166.48,166.46,172.84]
[1752666440784,8.64709961,166.48,166.47,6.2216534]
[1752666441191,6.0062,166.48,166.47,6.2216534]
[1752666441395,8.64709961,166.48,166.47,6.2216534]
[1752666442592,6.0062,166.48,166.47,6.2216534]
[1752666442792,8.64709961,166.48,166.47,6.2216534]
[1752666444393,6.0062,166.48,166.47,6.2216534]
[1752666445996,6.0062,166.48,166.46,172.84]
[1752666446197,6.0062,166.48,166.47,6.2151532]
[1752666448795,8.64709961,166.48,166.47,6.2151532]
[1752666449798,8.64709961,166.48,166.47,6.17523482]
[1752666449998,8.64709961,166.48,166.46,172.84]
[1752666449999,6.0062,166.47,166.46,172.84]
[1752666450301,8.64709961,166.47,166.46,172.84]
[1752666451094,8.64709961,166.47,166.43,518.8]
[1752666451095,6.0073,166.44,166.43,518.8]
[1752666451299,6.0073,166.44,166.43,691.64]
[1752666451595,8.64819961,166.44,166.43,691.64]
[1752666451799,2.64089961,166.44,166.41,172.84]
[1752666452299,2.64089961,166.43,166.41,172.84]
[1752666453098,12.0096,166.52,166.41,178.8484]
[1752666453295,2.64089961,166.44,166.41,178.8484]
[1752666454099,8.64839961,166.44,166.41,178.8484]
[1752666457099,6.0077,166.43,166.41,178.8484]
[1752666457300,6.0077,166.43,166.41,172.84]
[1752666457499,8.64859961,166.43,166.41,172.84]
[1752666457898,2.64089961,166.44,166.41,172.84]
[1752666458500,8.64849961,166.44,166.41,178.8481]
[1752666458803,2.64089961,166.43,166.41,178.8481]
[1752666460002,8.64879961,166.43,166.41,178.8481]
[1752666460200,6.0079,166.43,166.41,178.8481]
[1752666460501,8.64879961,166.43,166.41,172.84]
[1752666460802,6.0081,166.42,166.41,172.84]
[1752666461704,8.64899961,166.42,166.41,172.84]
[1752666463208,6.0081,166.42,166.41,172.84]
[1752666467810,2.64089961,166.44,166.41,172.84]
[1752666468107,2.64089961,166.43,166.41,172.84]
[1752666469604,135.5663042,166.49,166.42,2.64089961]
[1752666469811,6.0061,166.48,166.46,2.64089961]
[1752666470006,6.0061,166.48,166.47,172.88]
[1752666470508,141.5720042,166.49,166.47,172.88]
[1752666471305,141.5720042,166.49,166.48,172.88]
[1752666471306,135.5663042,166.49,166.48,172.88]
[1752666471505,135.5663042,166.49,166.48,175.52089961]
[1752666471701,2.64089961,166.52,166.48,181.52679961]
[1752666471702,6.005,166.51,166.48,181.52679961]
[1752666472006,6.005,166.51,166.48,175.52089961]
[1752666472209,2.64089961,166.52,166.48,175.52089961]
[1752666472410,6.0046,166.52,166.49,8.64619961]
[1752666472713,2.64089961,166.53,166.49,8.64619961]
[1752666473612,6.0046,166.52,166.49,8.64619961]
[1752666474613,2.64089961,166.55,166.51,2.64089961]
[1752666475014,2.64089961,166.55,166.5,2.64089961]
[1752666475216,6.0045,166.52,166.5,2.64089961]
[1752666475414,6.0045,166.52,166.49,6.0053]
[1752666475614,6.0045,166.52,166.49,8.64619961]
[1752666475815,6.0042,166.53,166.49,8.64619961]
[1752666476014,8.64509961,166.53,166.49,8.64619961]
[1752666477016,2.64089961,166.53,166.5,6.005]
[1752666477315,2.64089961,166.53,166.49,2.64089961]
[1752666477617,8.64469961,166.54,166.5,2.64089961]
[1752666478016,8.64469961,166.54,166.5,8.64579961]
[1752666480917,6.0041,166.53,166.5,2.64089961]
[1752666481417,8.64479961,166.54,166.5,2.64089961]
[1752666481621,2.64089961,166.55,166.51,2.64089961]
[1752666482120,8.64439961,166.55,166.51,8.64549961]
[1752666483322,6.0035,166.55,166.52,6.0044]
[1752666483621,8.64439961,166.55,166.52,6.0044]
[1752666483917,2.64089961,166.55,166.49,172.84]
[1752666484221,2.64089961,166.54,166.5,2.64089961]
[1752666484419,2.64089961,166.55,166.51,2.64089961]
[1752666484618,8.64449961,166.55,166.52,6.0044]
[1752666485113,8.64449961,166.55,166.51,2.64089961]
[1752666485423,8.64449961,166.55,166.51,6.0046]
[1752666485620,8.64449961,166.55,166.51,8.64549961]
[1752666485917,8.64449961,166.55,166.52,6.0044]
[1752666486321,8.64449961,166.55,166.51,2.64089961]
[1752666486523,8.64449961,166.55,166.51,8.64549961]
[1752666487122,6.0033,166.56,166.51,2.64089961]
[1752666487421,137.49194817,166.62,166.49,172.84]
[1752666487422,2.64089961,166.55,166.49,172.84]
[1752666487626,8.64439961,166.55,166.51,8.64539961]
[1752666488518,8.64439961,166.55,166.52,6.0044]
[1752666491125,2.64089961,166.55,166.52,6.0044]
[1752666491524,2.64089961,166.55,166.52,8.64529961]
[1752666491820,8.64429961,166.55,166.52,8.64529961]
[1752666492516,6.0031,166.56,166.53,8.64499961]
[1752666494727,2.64089961,166.56,166.53,8.64499961]
[1752666495228,8.64399961,166.56,166.53,8.64499961]
[1752666495418,2.64089961,166.56,166.51,6.0048]
[1752666495624,2.64089961,166.56,166.52,2.64089961]
[1752666496824,8.64409961,166.56,166.52,8.64529961]
[1752666498430,6.0034,166.55,166.52,8.64529961]
[1752666499130,6.0034,166.55,166.52,2.64089961]
[1752666499527,8.64429961,166.55,166.51,8.64559961]
[1752666501629,2.64089961,166.55,166.51,2.64089961]
[1752666501831,2.64089961,166.52,166.49,2.64089961]
[1752666502531,2.64089961,166.52,166.48,175.42089961]
[1752666502732,2.64089961,166.52,166.49,6.0053]
[1752666503131,2.64089961,166.52,166.5,6.0052]
[1752666503629,8.64509961,166.53,166.5,6.0052]
[1752666504933,6.0042,166.53,166.5,6.0052]
[1752666505139,8.64479961,166.54,166.5,8.64609961]
[1752666505342,2.64089961,166.53,166.5,6.0052]
[1752666505731,2.64089961,166.53,166.48,172.78]
[1752666505732,2.64089961,166.53,166.49,6.0054]
[1752666505932,2.64089961,166.52,166.48,175.42089961]
[1752666506439,2.64089961,166.52,166.49,6.0055]
[1752666507340,2.64089961,166.52,166.49,8.64639961]
[1752666507941,8.64519961,166.53,166.49,8.64639961]
[1752666508145,6.0039,166.54,166.5,6.0052]
[1752666508341,2.64089961,166.53,166.5,6.0052]
[1752666510842,2.64089961,166.55,166.51,2.64089961]
[1752666511241,2.64089961,166.55,166.52,6.0042]
[1752666511643,124.0,166.62,166.52,2.64089961]
[1752666511945,2.64089961,166.56,166.53,6.0037]
[1752666512141,2.64089961,166.57,166.53,175.42089961]
[1752666512336,2.64089961,166.57,166.54,6.0035]
[1752666512542,8.64349961,166.58,166.54,8.64439961]
[1752666512742,2.64089961,166.57,166.54,6.0035]
[1752666513143,2.64089961,166.57,166.55,6.0033]
[1752666513946,2.64089961,166.57,166.54,6.0035]
[1752666514146,2.64089961,166.57,166.54,8.64439961]
[1752666514449,2.64089961,166.56,166.53,178.7839]
[1752666514652,2.64089961,166.56,166.53,172.78]
[1752666515647,2.64089961,166.55,166.53,172.78]
[1752666516245,8.64429961,166.55,166.53,172.78]
[1752666516548,2.64089961,166.55,166.53,172.78]
[1752666516749,13.49194817,166.62,166.53,172.78]
[1752666516940,2.64089961,166.55,166.53,172.78]
[1752666518952,8.64429961,166.55,166.53,172.78]
[1752666519152,2.64089961,166.55,166.53,172.78]
[1752666519654,2.64089961,166.54,166.53,172.78]
[1752666520554,8.64459961,166.54,166.53,172.78]
[1752666521648,8.64459961,166.54,166.5,6.0051]
[1752666521848,2.64089961,166.53,166.51,6.0134052]
[1752666522048,2.64089961,166.53,166.5,6.0051]
[1752666522244,2.64089961,166.53,166.51,6.01357007]
[1752666522450,2.64089961,166.53,166.5,6.0051]
[1752666522643,2.64089961,166.53,166.51,6.01400804]
[1752666522845,2.64089961,166.53,166.5,6.0051]
[1752666523045,2.64089961,166.53,166.51,6.01739619]
[1752666523252,2.64089961,166.53,166.5,6.0051]
[1752666523446,2.64089961,166.53,166.51,6.01824005]
[1752666523650,2.64089961,166.53,166.5,6.0051]
[1752666523852,2.64089961,166.53,166.51,6.0182384]
[1752666524052,2.64089961,166.53,166.5,6.0051]
[1752666524252,2.64089961,166.53,166.51,6.01837694]
[1752666524454,2.64089961,166.53,166.5,6.0051]
[1752666524655,2.64089961,166.53,166.51,6.0191655]
[1752666524955,2.64089961,166.53,166.5,6.0051]
[1752666525558,8.64499961,166.53,166.49,172.76]
[1752666525755,8.64499961,166.53,166.5,6.02051744]
[1752666526055,8.64499961,166.53,166.49,175.40089961]
[1752666526251,2.64089961,166.52,166.5,6.02002184]
[1752666526457,2.64089961,166.51,166.49,172.76]
[1752666526857,2.64089961,166.5,166.49,172.76]
[1752666528359,2.64089961,166.52,166.49,172.76]
[1752666528754,2.64089961,166.52,166.5,6.0049]
[1752666529150,8.64519961,166.53,166.5,6.0049]
[1752666530454,2.64089961,166.53,166.51,6.0048]
[1752666530961,6.0039,166.54,166.51,6.0048]
[1752666533258,4.12638852,166.55,166.52,6.0044]
[1752666533259,10.12988852,166.55,166.52,6.0044]
[1752666533556,4.12638852,166.57,166.5,172.78]
[1752666534461,6.0035,166.55,166.52,6.0043]
[1752666537867,6.0033,166.56,166.52,6.0043]
[1752666538861,6.0034,166.55,166.52,6.0043]
[1752666539268,138.37541536,166.6,166.53,4.12638852]
[1752666539469,138.37541536,166.6,166.54,5.92762202]
[1752666539666,13.49194817,166.63,166.56,6.0029]
[1752666539867,4.12638852,166.62,166.56,6.0029]
[1752666540663,27.0153906,166.64,166.57,6.38497944]
[1752666540868,27.0153906,166.64,166.56,6.0029]
[1752666540869,4.12638852,166.62,166.56,6.0029]
[1752666541065,4.12638852,166.63,166.57,6.37980192]
[1752666541260,4.12638852,166.63,166.57,6.0026]
[1752666541460,6.0015,166.61,166.57,6.0026]
[1752666541664,4.12638852,166.63,166.57,6.0026]
[1752666541866,4.12638852,166.63,166.58,6.37798571]
[1752666542170,6.0014,166.61,166.55,4.12638852]